[Event "16th Serbian-ch Women 2022"]
[Site "Bajina Basta"]
[Date "2022.12.14"]
[Round "9.5"]
[White "Drljevic, Ljilja"]
[Black "Srdanovic, Jovana"]
[Result "1-0"]
[ECO "B24"]
[WhiteElo "2175"]
[BlackElo "2189"]
[Annotator "TA"]
[PlyCount "115"]
[EventDate "2022.12.06"]
[EventType "tourn"]
[EventCountry "SRB"]
[SourceTitle "playchess.com"]
[Source "ChessBase"]
[SourceQuality "1"]
[TimeControl "40/5400+30:1800+30"]

{[%evp 11,115,22,16,0,7,0,3,3,17,0,0,-5,-7,-14,0,0,0,-15,-20,-38,-15,-23,-5,-17,0,0,0,-22,-30,-22,-28,-26,-25,-18,47,-14,0,0,0,0,0,-11,0,-31,-29,-29,-20,-26,-27,-26,-24,-133,-146,-132,-137,-139,-38,-218,-194,-356,-375,-472,-350,-334,-325,-291,-132,-110,0,-90,0,0,18,18,74,87,103,10,10,9,9,11,11,11,17,25,31,40,837,1006,1046,1040,1399,1237,1304,139,177,0,957,906,29976,29977,29970,29971,29981,29970]} 1. e4 {[%emt 0:00:03]} c5 {[%emt 0:00:05]} 2. Nc3 {[%emt 0:00:06]} e6 {[%emt 0:00:19]} 3. g3 {[%emt 0:01:41]} Nc6 {[%emt 0:00:26]} 4. Bg2 {[%emt 0:00:03]} Nf6 {[%emt 0:00:40]} 5. Nge2 {[%emt 0:10:26]} Be7 {[%emt 0:09:53]} 6. O-O {[%emt 0:08:47]} O-O {[%emt 0:06:26]} 7. h3 {[%emt 0:05:47] B24: Closed Sicilian: 3 g3 sidelines.} Rb8 {[%emt 0:04:09]} 8. d4 {[%emt 0:06:29]} cxd4 {[%emt 0:10:48]} 9. Nxd4 {[%emt 0:00:13] The position is equal.} d6 {[%emt 0:01:31]} 10. a4 {[%emt 0:04:49]} a6 {[%emt 1:01:13]} 11. Nb3 {[%emt 0:06:09]} b6 {[%emt 0:00:00] [#]} 12. Be3 $146 {[%emt 0:06:07]} ({Predecessor:} 12. f4 Qc7 13. Be3 Rd8 14. Qe2 Bb7 15. Rad1 Nd7 16. g4 Nc5 17. Nd4 Nb4 18. g5 {0-1 (34) Berta,T (2190)-Lantos,L Hungary 1997}) 12... Bb7 {[%emt 0:00:00]} 13. Qe2 {[%emt 0:04:07]} Qc7 {[%emt 0:00:00]} 14. f4 {[%emt 0:08:33]} Na5 {[%emt 0:00:00]} 15. Nd2 {[%emt 0:13:27]} Rfc8 {[%emt 0:00:00]} 16. Qf2 {[%emt 0:06:50]} Ba8 {[%emt 0:00:00]} 17. Rfe1 {[%emt 0:02:45]} Nd7 {[%emt 0:00:00]} 18. Bf1 {[%emt 0:01:35]} Bb7 {[%emt 0:00:00]} 19. g4 {[%emt 0:00:48]} Bf6 {[%emt 0:00:00]} 20. Ra3 {[%emt 0:00:09]} Qd8 {[%emt 0:00:00]} 21. g5 {[%emt 0:12:06]} Bxc3 {[%emt 0:00:00]} 22. bxc3 {[%emt 0:00:00]} d5 {[%emt 0:00:00]} ({Black should play} 22... f6 $11) 23. Bd4 {[%emt 0:00:00]} (23. exd5 $14 exd5 24. Bd4) 23... Nc5 {[%emt 0:00:00]} 24. exd5 {[%emt 0:00:00]} Qxd5 {[%emt 0:00:00][%csl Gb7][%cal Rd5h1]} 25. Kh2 {[%emt 0:00:00]} Rd8 {[%emt 0:00:00]} 26. Raa1 {[%emt 0:00:35]} Bc6 {[%emt 0:00:00]} (26... e5 27. Rxe5 Qh1+ 28. Kg3 $16) 27. Bg2 {[%emt 0:00:59]} Qf5 $40 {[%emt 0:00:15][%mdl 128] Black attacks.} (27... Qxg2+ {simplifies} 28. Qxg2 Bxg2 29. Kxg2 Rbc8) 28. Nf1 {[%emt 0:00:21]} Bxg2 {[%emt 0:00:53]} (28... Bxa4 $2 29. Ne3 Qg6 30. Bxc5 $18) 29. Kxg2 {[%emt 0:00:39]} Nc6 {[%emt 0:00:41]} 30. Bxc5 {[%emt 0:01:22]} bxc5 {[%emt 0:01:20]} 31. Rab1 {[%emt 0:00:02]} (31. Ne3 $11 Qg6 32. Kh2) 31... Rxb1 $17 {[%emt 0:01:22]} 32. Rxb1 {[%emt 0:00:01]} Qe4+ {[%emt 0:03:13]} 33. Kg3 {[%emt 0:00:03]} e5 {[%emt 0:00:28]} ({Better is} 33... Ne7 $17 {Strongly threatening ...Ng6.} 34. Ne3 Ng6) 34. Rb6 $2 {[%emt 0:01:52] [#]} (34. f5 $15) 34... Ne7 $1 $19 {[%emt 0:01:08]} (34... Qxa4 35. Ne3 $15) 35. Ne3 {[%emt 0:00:30]} (35. fxe5 {was forced.} Qxe5+ 36. Kg2) 35... Ng6 {[%emt 0:00:47][%cal Re5f4]} (35... Qxa4 36. f5 $17) 36. Ng2 {[%emt 0:00:33]} Qf5 {[%emt 0:01:43]} (36... Qxa4 37. f5 Nf4 38. Nxf4 exf4+ 39. Qxf4 Qxc2 40. Rb8 Qxc3+ 41. Kg4 $17) 37. h4 {[%emt 0:00:26]} exf4+ {[%emt 0:00:17]} 38. Nxf4 {[%emt 0:00:13]} Ne5 {[%emt 0:01:01]} ({Weaker is} 38... Nxf4 39. Qxf4 Qxc2 40. Qd6 Qxc3+ 41. Kg2 Qc2+ 42. Kg3 Qd3+ 43. Qxd3 Rxd3+ 44. Kf2 $15) (38... Qe5 $19 {White must now prevent ...Rd1.} 39. Rc6 Qxc3+ 40. Nd3 Qc4) 39. Qe2 $17 {[%emt 0:00:41][%cal Of4d5] Inhibits Rd1.} a5 {[%emt 0:00:37]} (39... h6 $1 $17 {[%cal Rh6g5]} 40. gxh6 g5) 40. Rb5 {[%emt 0:00:29]} (40. Nd5 $11 Kf8 41. c4) 40... Nc6 {[%emt 0:00:39]} (40... h6 $17 41. gxh6 g5 42. h7+ Kh8) 41. Nd3 $11 {[%emt 0:10:03]} h6 {[%emt 0:07:14]} 42. Qf3 {[%emt 0:03:13]} Qxf3+ {[%emt 0:06:06]} (42... Qe6 $11) 43. Kxf3 {[%emt 0:00:03][%mdl 4096] Endgame KRN-KRN} c4 {[%emt 0:01:02]} 44. Ne5 {[%emt 0:09:17]} (44. Nf4 $16) 44... Nxe5+ {[%emt 0:00:58]} 45. Rxe5 {[%emt 0:00:02] KR-KR} Rd2 $1 {[%emt 0:00:42]} 46. Ke3 {[%emt 0:00:07]} Rxc2 {[%emt 0:00:52]} 47. Kd4 {[%emt 0:00:29] And now gxh6 would win.} Rh2 {[%emt 0:00:29]} 48. Kxc4 {[%emt 0:03:40]} Rxh4+ {[%emt 0:00:04]} 49. Kb5 {[%emt 0:00:24] aiming for c4.} Rh5 $2 {[%emt 0:06:55][%mdl 8192] Inhibits c4.} (49... hxg5 $14 50. Rxg5 f6) 50. c4 $1 $18 {[%emt 0:02:40]} f6 {[%emt 0:03:37] Against c5} 51. Rd5 {[%emt 0:00:36]} Kf8 {[%emt 0:03:57]} 52. Kxa5 {[%emt 0:00:40]} hxg5 {[%emt 0:01:59]} 53. Kb6 $2 {[%emt 0:02:04]} (53. c5 $18 {is the precise move to win.}) 53... Rh4 $16 {[%emt 0:01:13] [#]} 54. c5 $2 {[%emt 0:02:44]} ({Much less strong is} 54. a5 $6 Rxc4 55. a6 Kf7 $14) (54. Kb5 $1 $18 {Threatens to win with c5.} g4 55. c5 (55. a5 Rh3 $16)) 54... Rb4+ $2 {[%emt 0:01:17][%mdl 8192]} (54... Rxa4 $11 55. c6 Ke7) 55. Ka5 $18 {[%emt 0:00:11]} Rb8 {[%emt 0:01:01]} 56. c6 {[%emt 0:00:13][%cal Bc5c6,Bc6c7][%mdl 32] White mates.} Ke7 {[%emt 0:00:28]} 57. c7 {[%emt 0:00:25]} Ra8+ {[%emt 0:00:34]} 58. Kb6 {[%emt 0:00:20] White used his chance.   Weighted Error Value: White=0.41/Black=0.36} 1-0